Workbook

Sheet Series Circuit Parameters
B2: SERIES CIRCUIT PARAMETERS
B3: A. | C3: Airport Name | D3: <Enter Airport Name Here>
B5: B. | C5: Circuit Identification (if applicable) | D5: <Enter Circuit ID as required>
B7: C. | C7: Maximum CCR Output Current | D7: 6.6 | E7: Amps
B9: D. | C9: Number of CCR Steps | D9: 5-Step (2.8A-6.6A)
B11: E. | C11: Input Voltage | D11: 480Vac
B13: F. | C13: Frequency | D13: 60Hz
B15: G. | C15: Series Circuit Cable Wire Length Units | D15: Feet
B17: H. | C17: CCR Architecture | D17: Ferroresonant
B19: I. | C19: Estimated roundtrip length of L-824 series circuit wire | D19: 10000 | E19: =" " & $D$15 & "" -> Feet
B21: J. | C21: L-824 Wire Size | D21: 8 | E21: AWG
B23: K. | C23: L-824 Wire Resistance (see note below) | D23: 0.66 | E23: =" ohms/1,000 " & $D$15 -> ohms/1,000 Feet
C25: Wire Resistance Note:
C26: For AWG 6, use 0.42 ohms/1,000 Feet | D26: L-824 LOAD | F26: =ROUND((D7^2)*(D23*(D19/1000)),1) -> 287.5 | H26: VA
C27: For AWG 8, use 0.66 ohms/1,000 Feet
A29: CCR LOAD CALCULATOR | © 2009-2024 ADB SAFEGATE | All Rights Reserved.

Sheet Lamp Load
B2: Tungsten Halogen / Incandescent Lamp Fixture Load
B4: 1. | C4: Fixture Load Calculator #1 | N4: * | O4: Note: If fixture has multiple lamps, enter maximum wattage when maximum number of lamps are on. Example: For a bi-directional L-852D (with two 30W lamps) where both lamps can be on at the same time, enter 60W.
C6: A. | D6: Fixture Description | H6: L-850C
C8: B. | D8: Manufacturer | H8: ADB Safegate
C10: C. | D10: Number of Light Fixtures | H10: 100
C12: D. | D12: Fixture Wattage* | H12: 45 | I12: W
C14: E. | D14: Are long secondary wires present?** | H14: No | N14: ** | O14: Note: "No" is automatically assumed if transformer is located underneath fixture.
D16: 1. Estimated roundtrip length of Isol. Tx. secondary wire | K16: =" " & 'Series Circuit Parameters'!$D$15 & "" -> Feet
D18: 2. Isolation Transformer Secondary Wire Gauge | K18: AWG
D20: 3. Wire Resistance | G20: =IF(J18,VLOOKUP(J18,variables!$I$8:$K$9,variables!$J$1,FALSE),0) -> 0 | H20: =" ohms / 1000 " & 'Series Circuit Parameters'!$D$15 -> ohms / 1000 Feet | J20: =ROUND(('Series Circuit Parameters'!$D$7^2)*(G20*(J16/1000)),1) -> 0 | K20: VA
C22: F. | D22: Other Load on Isolation Transformer*** | H22: 3 | I22: VA | N22: *** | O22: Note: Any other load not listed in calculator.
C24: G. | D24: Total Isolation Transformer Load | H24: =H12+J20+H22 -> 48 | I24: VA
C26: H. | D26: Isolation Transformer Used | H26: 45 | I26: W
C28: I. | D28: Isolation Transformer Losses | H28: =IF(H26,VLOOKUP(H26,variables!$L$5:$M$17,2,FALSE),0) -> 9 | I28: VA
J30: Total CCR Load for Fixture No. 1 | L30: =H10*(H24+H28) -> 5700 | M30: VA
B34: 2. | C34: Fixture Load Calculator #2 | N34: * | O34: Note: If fixture has multiple lamps, enter maximum wattage when maximum number of lamps are on. Example: For a bi-directional L-852D (with two 30W lamps) where both lamps can be on at the same time, enter 60W.
C36: A. | D36: Fixture Description | H36: L-850C
C38: B. | D38: Manufacturer | H38: ADB Safegate
C40: C. | D40: Number of Light Fixtures | H40: 1
C42: D. | D42: Fixture Wattage* | H42: 45 | I42: W
C44: E. | D44: Are long secondary wires present?** | H44: No | N44: ** | O44: Note: "No" is automatically assumed if transformer is located underneath fixture.
D46: 1. Estimated roundtrip length of Isol. Tx. secondary wire | K46: =" " & 'Series Circuit Parameters'!$D$15 & "" -> Feet
D48: 2. Isolation Transformer Secondary Wire Gauge | K48: AWG
D50: 3. Wire Resistance | G50: =IF(J48,VLOOKUP(J48,variables!$I$8:$K$9,variables!$J$1,FALSE),0) -> 0 | H50: =" ohms / 1000 " & 'Series Circuit Parameters'!$D$15 -> ohms / 1000 Feet | J50: =ROUND(('Series Circuit Parameters'!$D$7^2)*(G50*(J46/1000)),1) -> 0 | K50: VA
C52: F. | D52: Other Load on Isolation Transformer*** | H52: 3 | I52: VA | N52: *** | O52: Note: Any other load not listed in calculator.
C54: G. | D54: Total Isolation Transformer Load | H54: =H42+J50+H52 -> 48 | I54: VA
C56: H. | D56: Isolation Transformer Used | H56: 45 | I56: W
C58: I. | D58: Isolation Transformer Losses | H58: =IF(H56,VLOOKUP(H56,variables!$L$5:$M$17,2,FALSE),0) -> 9 | I58: VA
J60: Total CCR Load for Fixture No. 1 | L60: =H40*(H54+H58) -> 57 | M60: VA
B64: 3. | C64: Fixture Load Calculator #3 | N64: * | O64: Note: If fixture has multiple lamps, enter maximum wattage when maximum number of lamps are on. Example: For a bi-directional L-852D (with two 30W lamps) where both lamps can be on at the same time, enter 60W.
C66: A. | D66: Fixture Description
C68: B. | D68: Manufacturer
C70: C. | D70: Number of Light Fixtures
C72: D. | D72: Fixture Wattage* | I72: W
C74: E. | D74: Are long secondary wires present?** | H74: No | N74: ** | O74: Note: "No" is automatically assumed if transformer is located underneath fixture.
D76: 1. Estimated roundtrip length of Isol. Tx. secondary wire | K76: =" " & 'Series Circuit Parameters'!$D$15 & "" -> Feet
D78: 2. Isolation Transformer Secondary Wire Gauge | K78: AWG
D80: 3. Wire Resistance | G80: =IF(J78,VLOOKUP(J78,variables!$I$8:$K$9,variables!$J$1,FALSE),0) -> 0 | H80: =" ohms / 1000 " & 'Series Circuit Parameters'!$D$15 -> ohms / 1000 Feet | J80: =ROUND(('Series Circuit Parameters'!$D$7^2)*(G80*(J76/1000)),1) -> 0 | K80: VA
C82: F. | D82: Other Load on Isolation Transformer*** | I82: VA | N82: *** | O82: Note: Any other load not listed in calculator.
C84: G. | D84: Total Isolation Transformer Load | H84: =H72+J80+H82 -> 0 | I84: VA
C86: H. | D86: Isolation Transformer Used | I86: W
C88: I. | D88: Isolation Transformer Losses | H88: =IF(H86,VLOOKUP(H86,variables!$L$5:$M$17,2,FALSE),0) -> 0 | I88: VA
J90: Total CCR Load for Fixture No. 1 | L90: =H70*(H84+H88) -> 0 | M90: VA
B94: 4. | C94: Fixture Load Calculator #4 | N94: * | O94: Note: If fixture has multiple lamps, enter maximum wattage when maximum number of lamps are on. Example: For a bi-directional L-852D (with two 30W lamps) where both lamps can be on at the same time, enter 60W.
C96: A. | D96: Fixture Description
C98: B. | D98: Manufacturer
C100: C. | D100: Number of Light Fixtures | H100: 0
C102: D. | D102: Fixture Wattage* | I102: W
C104: E. | D104: Are long secondary wires present?** | H104: No | N104: ** | O104: Note: "No" is automatically assumed if transformer is located underneath fixture.
D106: 1. Estimated roundtrip length of Isol. Tx. secondary wire | K106: =" " & 'Series Circuit Parameters'!$D$15 & "" -> Feet
D108: 2. Isolation Transformer Secondary Wire Gauge | K108: AWG
D110: 3. Wire Resistance | G110: =IF(J108,VLOOKUP(J108,variables!$I$8:$K$9,variables!$J$1,FALSE),0) -> 0 | H110: =" ohms / 1000 " & 'Series Circuit Parameters'!$D$15 -> ohms / 1000 Feet | J110: =ROUND(('Series Circuit Parameters'!$D$7^2)*(G110*(J106/1000)),1) -> 0 | K110: VA
C112: F. | D112: Other Load on Isolation Transformer*** | H112: 3 | I112: VA | N112: *** | O112: Note: Any other load not listed in calculator.
C114: G. | D114: Total Isolation Transformer Load | H114: =H102+J110+H112 -> 3 | I114: VA
C116: H. | D116: Isolation Transformer Used | H116: 45 | I116: W
C118: I. | D118: Isolation Transformer Losses | H118: =IF(H116,VLOOKUP(H116,variables!$L$5:$M$17,2,FALSE),0) -> 9 | I118: VA
J120: Total CCR Load for Fixture No. 1 | L120: =H100*(H114+H118) -> 0 | M120: VA
J123: Total Tungsten-Halogen/Incandescent Lamp Load | L123: =L30+L60+L90+L120 -> 5757 | M123: VA
A126: CCR LOAD CALCULATOR | © 2009-2024 ADB SAFEGATE | All Rights Reserved.

Sheet LED Load
B2: LED FIXTURE LOAD | G2: Note: Use the "Other Loads" sheet to enter LED PAPI, REIL and Wind Cone data.
B3: 1. | C3: Fixture Load Calculator #1
C5: A. | D5: Fixture Description | H5: L-850B(L)
C7: B. | D7: Manufacturer | H7: ADB Safegate
C9: C. | D9: Number of Light Fixtures | H9: 20
C11: D. | D11: LED fixture load | H11: 12 | I11: VA
C13: E. | D13: Are long secondary wires present? | H13: No
D14: Note: Zero is automatically assumed if transformer is located underneath fixture.
D15: 1. Estimated roundtrip length of Isolation Transformer secondary wire | K15: =" " & 'Series Circuit Parameters'!$D$15 & "" -> Feet
D17: 2. Isolation Transformer Secondary Wire Gauge | K17: AWG
D19: 3. Wire Resistance | G19: =IF(J17,VLOOKUP(J17,variables!$I$8:$K$9,variables!$J$1,FALSE),0) -> 0 | H19: =" ohms / 1000 " & 'Series Circuit Parameters'!$D$15 -> ohms / 1000 Feet | J19: =ROUND(('Series Circuit Parameters'!$D$7^2)*(G19*(J15/1000)),1) -> 0 | K19: VA
C21: F. | D21: Other Load on Isolation Transformer * | H21: 0 | I21: VA
D22: (Any other load not listed in calculator.)
C24: G. | D24: Total Isolation Transformer Load | H24: =H11+J19+H21 -> 12 | I24: VA
C26: H. | D26: Isolation Transformer Used | H26: 20 | I26: W
C28: I. | D28: Isolation Transformer Losses | H28: =IF(H26,VLOOKUP(H26,variables!$L$5:$M$17,2,FALSE),0) -> 6 | I28: VA
J30: Total Fixture Load No. 1 | L30: =H9*(H24+H28) -> 360 | M30: VA
B34: 2. | C34: Fixture Load Calculator #2
C36: A. | D36: Fixture Description | H36: L-852D(L)
C38: B. | D38: Manufacturer | H38: ADB Safegate
C40: C. | D40: Number of Light Fixtures | H40: 0
C42: D. | D42: LED fixture load | H42: 22 | I42: VA
C44: E. | D44: Are long secondary wires present? | H44: No
D45: Note: Zero is automatically assumed if transformer is located underneath fixture.
D46: 1. Estimated roundtrip length of Isolation Transformer secondary wire | K46: =" " & 'Series Circuit Parameters'!$D$15 & "" -> Feet
D48: 2. Isolation Transformer Secondary Wire Gauge | K48: AWG
D50: 3. Wire Resistance | G50: =IF(J48,VLOOKUP(J48,variables!$I$8:$K$9,variables!$J$1,FALSE),0) -> 0 | H50: =" ohms / 1000 " & 'Series Circuit Parameters'!$D$15 -> ohms / 1000 Feet | J50: =ROUND(('Series Circuit Parameters'!$D$7^2)*(G50*(J46/1000)),1) -> 0 | K50: VA
C52: F. | D52: Other Load on Isolation Transformer | H52: 2 | I52: VA
D53: (Any other load not listed in calculator.)
C55: G. | D55: Total Isolation Transformer Load | H55: =H42+J50+H52 -> 24 | I55: VA
C57: H. | D57: Isolation Transformer Used | H57: 15 | I57: W
C59: I. | D59: Isolation Transformer Losses | H59: =IF(H57,VLOOKUP(H57,variables!$L$5:$M$17,2,FALSE),0) -> 4.5 | I59: VA
J61: Total Fixture Load No. 2 | L61: =H40*(H55+H59) -> 0 | M61: VA
B65: 3. | C65: Fixture Load Calculator #3
C67: A. | D67: Fixture Description | H67: L-862E(L)
C69: B. | D69: Manufacturer | H69: ADB Safegate
C71: C. | D71: Number of Light Fixtures | H71: 0
C73: D. | D73: LED fixture load | H73: 33 | I73: VA
C75: E. | D75: Are long secondary wires present? | H75: No
D76: Note: Zero is automatically assumed if transformer is located underneath fixture.
D77: 1. Estimated roundtrip length of Isolation Transformer secondary wire | K77: =" " & 'Series Circuit Parameters'!$D$15 & "" -> Feet
D79: 2. Isolation Transformer Secondary Wire Gauge | K79: AWG
D81: 3. Wire Resistance | G81: =IF(J79,VLOOKUP(J79,variables!$I$8:$K$9,variables!$J$1,FALSE),0) -> 0 | H81: =" ohms / 1000 " & 'Series Circuit Parameters'!$D$15 -> ohms / 1000 Feet | J81: =ROUND(('Series Circuit Parameters'!$D$7^2)*(G81*(J77/1000)),1) -> 0 | K81: VA
C83: F. | D83: Other Load on Isolation Transformer | H83: 3 | I83: VA
D84: (Any other load not listed in calculator.)
C86: G. | D86: Total Isolation Transformer Load | H86: =H73+J81+H83 -> 36 | I86: VA
C88: H. | D88: Isolation Transformer Used | H88: 45 | I88: W
C90: I. | D90: Isolation Transformer Losses | H90: =IF(H88,VLOOKUP(H88,variables!$L$5:$M$17,2,FALSE),0) -> 9 | I90: VA
J92: Total Fixture Load No. 3 | L92: =H71*(H86+H90) -> 0 | M92: VA
B96: 4. | C96: Fixture Load Calculator #4
C98: A. | D98: Fixture Description | H98: L-850B(L)
C100: B. | D100: Manufacturer | H100: ADB Safegate
C102: C. | D102: Number of Light Fixtures | H102: 0
C104: D. | D104: LED fixture load | H104: 22 | I104: VA
C106: E. | D106: Are long secondary wires present? | H106: No
D107: Note: Zero is automatically assumed if transformer is located underneath fixture.
D108: 1. Estimated roundtrip length of Isolation Transformer secondary wire | K108: =" " & 'Series Circuit Parameters'!$D$15 & "" -> Feet
D110: 2. Isolation Transformer Secondary Wire Gauge | K110: AWG
D112: 3. Wire Resistance | G112: =IF(J110,VLOOKUP(J110,variables!$I$8:$K$9,variables!$J$1,FALSE),0) -> 0 | H112: =" ohms / 1000 " & 'Series Circuit Parameters'!$D$15 -> ohms / 1000 Feet | J112: =ROUND(('Series Circuit Parameters'!$D$7^2)*(G112*(J108/1000)),1) -> 0 | K112: VA
C114: F. | D114: Other Load on Isolation Transformer | H114: 1 | I114: VA
D115: (Any other load not listed in calculator.)
C117: G. | D117: Total Isolation Transformer Load | H117: =H104+J112+H114 -> 23 | I117: VA
C119: H. | D119: Isolation Transformer Used | H119: 25 | I119: W
C121: I. | D121: Isolation Transformer Losses | H121: =IF(H119,VLOOKUP(H119,variables!$L$5:$M$17,2,FALSE),0) -> 7.5 | I121: VA
J123: Total Fixture Load No. 4 | L123: =H102*(H117+H121) -> 0 | M123: VA
C126: Total LED Fixture Load | G126: =L30+L61+L92+L123 -> 360 | H126: VA
A129: CCR LOAD CALCULATOR | © 2009-2024 ADB SAFEGATE | All Rights Reserved.

Sheet Sign Load
A2: FAA L-858 / ICAO / TP312 Sign Load
B4: 1. | C4: Sign Load No. 1 Calculator | I4: Reference Data:
C6: A. | D6: Sign Manufacturer | G6: ADB Safegate
C8: B. | D8: Sign Size | G8: Size 2
C10: C. | D10: Sign Modules (FAA) or Sign Length (ICAO/TP312) | G10: 4 Module
C12: D. | D12: Light Source | G12: LED
C14: E. | D14: Sign Power Architecture | F14: FAA LED
C16: F. | D16: Sign Style | E16: Style 2 (4.8A - 6.6A) 3-step
C18: G. | D18: Sign Transformer Used | G18: 300 | H18: W
C20: H. | D20: Sign VA as seen on the primary of the isolation transformer | F20: 255 | H20: VA
C22: I. | D22: Total Number of Signs in this Configuration | G22: 2
D24: Total Sign Load No. 1 | E24: =F20*G22 -> 510 | F24: VA
B28: 2. | C28: Sign Load No. 2 Calculator
C30: A. | D30: Sign Manufacturer | G30: ADB Safegate
C32: B. | D32: Sign Size | G32: Size 2
C34: C. | D34: Sign Modules (FAA) or Sign Length (ICAO/TP312) | G34: 4 Module
C36: D. | D36: Light Source | G36: LED
C38: E. | D38: Sign Power Architecture | F38: FAA LED
C40: F. | D40: Sign Style | E40: Style 3 (2.8A - 6.6A) 5-step
C42: G. | D42: Sign Transformer Used | G42: 300 | H42: W
C44: H. | D44: Sign VA as seen on the primary of the isolation transformer | F44: 255 | H44: VA
C46: I. | D46: Total Number of Signs in this Configuration | G46: 0
D48: Total Sign Load No. 2 | E48: =F44*G46 -> 0 | F48: VA
B52: 3. | C52: Sign Load No. 3 Calculator
C54: A. | D54: Sign Manufacturer | G54: ADB Safegate
C56: B. | D56: Sign Size | G56: Size 2
C58: C. | D58: Sign Modules (FAA) or Sign Length (ICAO/TP312) | G58: 4 Module
C60: D. | D60: Light Source | G60: LED
C62: E. | D62: Sign Power Architecture | F62: FAA LED
C64: F. | D64: Sign Style | E64: Style 3 (2.8A - 6.6A) 5-step
C66: G. | D66: Sign Transformer Used | G66: 300 | H66: W
C68: H. | D68: Sign VA as seen on the primary of the isolation transformer | F68: 255 | H68: VA
C70: I. | D70: Total Number of Signs in this Configuration | G70: 0
D72: Total Sign Load No. 3 | E72: =F68*G70 -> 0 | F72: VA
B76: 4. | C76: Sign Load No. 4 Calculator
C78: A. | D78: Sign Manufacturer | G78: ADB Safegate
C80: B. | D80: Sign Size | G80: Size 2
C82: C. | D82: Sign Modules (FAA) or Sign Length (ICAO/TP312) | G82: 4 Module
C84: D. | D84: Light Source | G84: LED
C86: E. | D86: Sign Power Architecture | F86: FAA LED
C88: F. | D88: Sign Style | E88: Style 3 (2.8A - 6.6A) 5-step
C90: G. | D90: Sign Transformer Used | G90: 300 | H90: W
C92: H. | D92: Sign VA as seen on the primary of the isolation transformer | F92: 255 | H92: VA
C94: I. | D94: Total Number of Signs in this Configuration | G94: 0
D96: Total Sign Load No. 4 | E96: =F92*G94 -> 0 | F96: VA
B100: 5. | C100: Sign Load No. 5 Calculator
C102: A. | D102: Sign Manufacturer | G102: ADB Safegate
C104: B. | D104: Sign Size | G104: Size 2
C106: C. | D106: Sign Modules (FAA) or Sign Length (ICAO/TP312) | G106: 4 Module
C108: D. | D108: Light Source | G108: LED
C110: E. | D110: Sign Power Architecture | F110: FAA LED
C112: F. | D112: Sign Style | E112: Style 3 (2.8A - 6.6A) 5-step
C114: G. | D114: Sign Transformer Used | G114: 300 | H114: W
C116: H. | D116: Sign VA as seen on the primary of the isolation transformer | F116: 255 | H116: VA
C118: I. | D118: Total Number of Signs in this Configuration | G118: 0
D120: Total Sign Load No. 5 | E120: =F116*G118 -> 0 | F120: VA
D123: Total Sign Load | E123: =E24+E48+E72+E96+E120 -> 510 | F123: VA
A125: CCR LOAD CALCULATOR | © 2009-2024 ADB SAFEGATE | All Rights Reserved.

Sheet In-pavement RGL
B5: In-Pavement Runway Guard Light (IRGL) Load
B6: A. | C6: Fixture Description | G6: L-852G(L)
C7: Note: Use the Stop Bar tab if the fixture is a L-852G/S.
B8: B. | C8: Fixture Manufacturer | G8: ADB Safegate
B10: C. | C10: Fixture Load | G10: 105 | H10: W or VA (LED)
B12: D. | C12: Monitored or Unmonitored? | G12: Un-Monitored
C13: Note: Selecting Unmonitored zeros out any load associated with the Master.
B14: E. | C14: Isolation Transformer Wattage | G14: 45 | H14: W | I14: Select from dropdown or type-in
B16: F. | C16: Are long secondary wires present? | G16: No
C17: Note: Zero is automatically assumed if transformer is located underneath fixture.
C18: 1. Estimated roundtrip length of Isolation Transformer secondary wire | J18: =" " & 'Series Circuit Parameters'!$D$15 & "" -> Feet
C20: 2. Isolation Transformer Secondary Wire Gauge | J20: AWG
C22: 3. Wire Resistance | G22: =" ohms / 1000 " & 'Series Circuit Parameters'!$D$15 -> ohms / 1000 Feet | I22: =ROUND(('Series Circuit Parameters'!$D$7^2)*(F22*(I18/1000)),1) -> 0 | J22: VA
B24: G. | C24: Type of Fixture Pulsing Device Used | I24: BRITE II Single Remote
C26: 1. Other Pulsing Device Load plus isolation transformer loss when ON | K26: 149 | L26: VA
C27: Note: Enter isolation transformer load if LED.
C28: 2. Other Pulsing Device Load plus isolation transformer loss when OFF | K28: 70 | L28: VA
C29: Note: Used for incandescent only. Enter 0 if LED.
B30: H. | C30: Total Number of In-pavement Light Fixtures on Circuit | I30: 1
C31: Note: The load calculations assumes the fixtures alternately pulse according to FAA requirements.
B32: I. | C32: Any Other Load on CCR | G32: 0 | H32: VA
B34: J. | C34: Monitoring Device Load (if present). | G34: 0 | H34: VA
C35: Note: This, for example, is the BRITE/AGLAS Master load, if any.
C36: Note: This calculation assumes that there is no operational need to have all lights ON at the same time. If all the lights are ON, the CCR might be overloaded in at least the high step (B5/B100). The FAA requires that RGLs pulse in all operational modes: Power-on, Normal Operation, and Failsafe mode. Therefore, there is no operational situation in which RGL lights will be steady burning ON.
C37: There also might be a CCR loading consideration if pulsing RGLs are being phased in with existing steady-burning yellow hold bars and all lights will be steady-burning initially.
G38: Load Calculation
G39: Max. CCR Load for Fixture + Pulsing Device + Transformer | K39: =I22+K26+K28 -> 219 | L39: VA
G41: Monitoring Device Load + Other Load | K41: =IF(G12="Monitored",G34,0)+G32 -> 0 | L41: VA
G42: Total In-pavement RGL Fixture load | K42: =K41+(I30*K39) -> 219 | L42: VA
A45: CCR LOAD CALCULATOR | © 2009-2024 ADB SAFEGATE | All Rights Reserved.

Sheet Elevated RGL
A2: Elevated L-804 Runway Guard Light (RGL)
B4: A. | C4: Fixture Description | G4: L-804
C5: Note: Use the Stop Bar tab if the L-804 is on the same circuit as the Stop Bar.
B6: B. | C6: Fixture Manufacturer | G6: ADB Safegate
B8: C. | C8: Fixture Load | G8: 100 | H8: W or VA (LED)
C9: Note: Enter the wattage for only one of the two lamps in the L-804 (since only one is on at a time.)
B10: D. | C10: Type of Fixture Pulsing Device Used | G10: BRITE III Dual Remote (AGLAS)
C11: Note: Entering PCB version inserts load for PCB only and auto zeros anything associated with BRITE / AGLAS / LINC 360
C12: 1. Pulsing Device Load. | H12: Note:Enter zero if LED. | I12: 25 | J12: VA
B13: E. | C13: Are long secondary wires present? | G13: No
C14: Note: Zero is automatically assumed if transformer is located underneath fixture.
C15: 1. Estimated roundtrip length of Isolation Transformer secondary wire | J15: =" " & 'Series Circuit Parameters'!$D$15 & "" -> Feet
C17: 2. Isolation Transformer Secondary Wire Gauge | J17: AWG
C19: 3. Wire Resistance | G19: =" ohms / 1000 " & 'Series Circuit Parameters'!$D$15 -> ohms / 1000 Feet | I19: =ROUND(('Series Circuit Parameters'!$D$7^2)*(F19*(I15/1000)),1) -> 0 | J19: VA
B21: F. | C21: Total Isolation Transformer Load | G21: =G8+I12+I19 -> 125 | H21: VA
B23: G. | C23: Isolation Transformer Wattage | H23: W
C25: Isolation Transformer Losses | G25: =IF(G21,VLOOKUP(G23,variables!$L$5:$M$17,2,FALSE),0) ->  | H25: VA
B27: H. | C27: Total Number of Elevated Light Fixtures on Circuit | I27: 4
C28: Note: The load calculations assumes the fixtures alternately pulse according to FAA requirements.
B29: I. | C29: Any Other Load on CCR | G29: 0 | H29: VA
B31: J. | C31: Monitored or Unmonitored? | G31: Un-Monitored
C32: Note: Selecting Unmonitored zeros out any load associated with the Master.
B33: K. | C33: Monitoring Device Load (if present). | G33: 0 | H33: VA
C34: Note: This, for example, is the BRITE/AGLAS Master load, if any.
G36: Load Calculation
G37: Max. CCR Load for Fixture + Pulsing Device + Transformer Losses | J37: =G21+G25 ->  | K37: VA
G38: Monitoring Device Load + Other Load | J38: =IF(G31="Monitored",G33,0)+G29 -> 0 | K38: VA
G39: Total Elevated RGL Fixture Load | J39: =J38+(I27*J37) ->  | K39: VA
A42: CCR LOAD CALCULATOR | © 2009-2024 ADB SAFEGATE | All Rights Reserved.

Sheet Stop Bar
B2: Stop Bar Loads, with or without In-pavement & Elevated RGL Loads
A4: In-pavement Stop Bar
B6: A. | C6: Fixture Description | G6: L-852S
B8: B. | C8: Fixture Manufacturer | G8: ADB Safegate
B10: C. | C10: Fixture Load | G10: 53 | H10: W or VA (LED)
B12: D. | C12: Type of Control/Monitoring Device Used
C14: 1. Max. Control/Monitoring Device Load | H14: VA
B16: E. | C16: Are long secondary wires present? | G16: Yes
C17: Note: Zero is automatically assumed if transformer is located underneath fixture.
C18: 1. Estimated roundtrip length of L-830 secondary wire | G18: 5 | H18: =" " & 'Series Circuit Parameters'!$D$15 & "" -> Feet
C20: 2. L-830 Secondary Wire Gauge | G20: 16 | H20: AWG
C22: 3. Wire Resistance and Load | D22: =IF(G20,VLOOKUP(G20,variables!$I$8:$K$9,variables!$J$1,FALSE),0) -> 4.35 | E22: =" ohms / 1000 " & 'Series Circuit Parameters'!$D$15 -> ohms / 1000 Feet | G22: =ROUND(('Series Circuit Parameters'!$D$7^2)*(D22*(G18/1000)),1) -> 0.9 | H22: VA
B24: F. | C24: Isolation Transformer Wattage | G24: 45 | H24: W
B26: G. | C26: Isolation Transformer Losses | G26: =IF(G24,VLOOKUP(G24,variables!$L$5:$M$17,2,FALSE),0) -> 9 | H26: VA
B28: H. | C28: Total Individual Fixture CCR Load | G28: =G10+G14+G22+G26 -> 62.9 | H28: VA | J28: SubTotal
B30: I. | C30: Total Number of In-pavement Stop Bar Fixtures on Circuit | G30: 10 | J30: =G30*G28 -> 629 | K30: VA
B33: Elevated Stop Bar
B35: A. | C35: Fixture Description | G35: L-862S
B37: B. | C37: Fixture Manufacturer | G37: ADB Safegate
B39: C. | C39: Fixture Load | G39: 150 | H39: W or VA (LED)
B41: D. | C41: Type of Control/Monitoring Device Used | G41: BRITE III (AGLAS) Single Remote
C43: 1. Max. Control/Monitoring Device Load | G43: 25 | H43: VA
B45: E. | C45: Are long secondary wires present? | G45: No
C46: Note: Zero is automatically assumed if transformer is located underneath fixture.
C47: 1. Estimated roundtrip length of L-830 secondary wire | H47: =" " & 'Series Circuit Parameters'!$D$15 & "" -> Feet
C49: 2. L-830 Secondary Wire Gauge | H49: AWG
C51: 3. Wire Resistance | D51: =IF(G49,VLOOKUP(G49,variables!$I$8:$K$9,variables!$J$1,FALSE),0) -> 0 | E51: =" ohms / 1000 " & 'Series Circuit Parameters'!$D$15 -> ohms / 1000 Feet | G51: =ROUND(('Series Circuit Parameters'!$D$7^2)*(D51*(G47/1000)),1) -> 0 | H51: VA
B53: F. | C53: Isolation Transformer Wattage | G53: 150 | H53: W
B55: G. | C55: Isolation Transformer Losses | G55: =IF(G53,VLOOKUP(G53,variables!$L$5:$M$17,2,FALSE),0) -> 20 | H55: VA
B57: H. | C57: Total Individual Fixture CCR Load | G57: =G39+G43+G51+G55 -> 195 | H57: VA | J57: SubTotal
B59: I. | C59: Total Number of Elevated Stop Bar Fixtures on Circuit | G59: 2 | J59: =G59*G57 -> 390 | K59: VA
B61: Sensor Load
B63: A. | C63: Type of Sensor Used | G63: Inductive Loop
B65: B. | C65: Individual Sensor + Isolation Transformer (if present) Load | G65: 564 | H65: VA | J65: SubTotal
B67: C. | C67: Total number of sensors | G67: 2 | J67: =G65*G67 -> 1128 | K67: VA
B71: In-pavement RGL Load Calculator (L-852G Side only in RVR >1200 ft.)
B73: A. | C73: Fixture Description | G73: L-852G
B75: B. | C75: Fixture Manufacturer | G75: ADB Safegate
B77: C. | C77: Fixture Load | G77: 105 | H77: W or VA (LED)
B79: D. | C79: Are long secondary wires present? | G79: No
C80: Note: Zero is automatically assumed if transformer is located underneath fixture.
C81: 1. Estimated roundtrip length of L-830 secondary wire | H81: =" " & 'Series Circuit Parameters'!$D$15 & "" -> Feet
C83: 2. L-830 Secondary Wire Gauge | H83: AWG
C85: 3. Wire Resistance | D85: =IF(G83,VLOOKUP(G83,variables!$I$8:$K$9,variables!$J$1,FALSE),0) -> 0 | E85: =" ohms / 1000 " & 'Series Circuit Parameters'!$D$15 -> ohms / 1000 Feet | G85: =ROUND(('Series Circuit Parameters'!$D$7^2)*(D85*(G81/1000)),1) -> 0 | H85: VA
B87: E. | C87: Isolation Transformer Wattage | G87: 100 | H87: W
B89: F. | C89: Type of Fixture Pulsing Device Used | G89: BRITE II Single Remote
C91: 1. Other Pulsing Device Load plus isolation transformer loss when ON | G91: 149 | H91: VA
C92: Note: Enter isolation transformer load if LED.
C93: 2. Other Pulsing Device Load plus isolation transformer loss when OFF | G93: 70 | H93: VA
C94: Note: Used for incandescent only. Enter 0 if LED. | J94: SubTotal
B95: G. | C95: Total Number of In-pavement Light Fixtures on Circuit | G95: 33 | J95: =(G91+G93)*G95 -> 7227 | K95: VA
C96: Note: The load calculations assumes the fixtures alternately pulse according to FAA requirements.
C98: Note: This calculation assumes that there is no operational need to have all lights ON at the same time. If all the lights are ON, the CCR might be overloaded in at least the high step (B5/B100). The FAA requires that RGLs pulse in all operational modes: Power-on, Normal Operation, and Failsafe mode. Therefore, there is no operational situation in which RGL lights will be steady burning ON.
A100: Elevated L-804 Runway Guard Light (RGL)
B102: A. | C102: Fixture Description | G102: L-804
C103: Note: Use this Stop Bar tab if the L-804 is on the same circuit as the Stop Bar.
B104: B. | C104: Fixture Manufacturer | G104: ADB Safegate
B106: C. | C106: Fixture Load | G106: 100 | H106: W or VA (LED)
C107: Note: Enter the wattage for only one of the two lamps in the L-804 (since only one is on at a time.)
B108: D. | C108: Type of Fixture Pulsing Device Used | G108: BRITE II Dual Remote
C109: Note: Entering PCB version inserts load for PCB only and auto zeros anything associated with BRITE / AGLAS
C110: 1. Pulsing Device Load. | G110: 20 | H110: VA
C111: Note: Enter zero if LED.
B112: E. | C112: Are long secondary wires present? | G112: No
C113: Note: Zero is automatically assumed if transformer is located underneath fixture.
C114: 1. Estimated roundtrip length of L-830 secondary wire | H114: =" " & 'Series Circuit Parameters'!$D$15 & "" -> Feet
C116: 2. L-830 Secondary Wire Gauge | H116: AWG
C118: 3. Wire Resistance | D118: =IF(G116,VLOOKUP(G116,variables!$I$8:$K$9,variables!$J$1,FALSE),0) -> 0 | E118: =" ohms / 1000 " & 'Series Circuit Parameters'!$D$15 -> ohms / 1000 Feet | G118: =ROUND(('Series Circuit Parameters'!$D$7^2)*(D118*(G114/1000)),1) -> 0 | H118: VA
B120: F. | C120: Isolation Transformer Wattage | G120: 100 | H120: W
B122: G. | C122: Isolation Transformer Losses | G122: =IF(G120,VLOOKUP(G120,variables!$L$5:$M$17,2,FALSE),0) -> 15 | H122: VA
B124: H. | C124: Max CCR Load for Fixture + Pulsing Device + Transformer | G124: =G106+G110+G118+G122 -> 135 | H124: VA | J124: SubTotal
B126: I. | C126: Total Number of Elevated Light Fixtures on Circuit | G126: 4 | J126: =G126*G124 -> 540 | K126: VA
C127: Note: The load calculations assumes the fixtures alternately pulse according to FAA requirements.
B129: Control/Monitoring Interface Device Load
B130: A. | C130: Monitoring Device Load (if present). | G130: 32 | H130: VA
C131: Note: This, for example, is the BRITE/AGLAS Master load, if any. | J131: SubTotal
B132: B. | C132: Any Other Load | G132: 0 | H132: VA | J132: =G130+G132 -> 32 | K132: VA
I134: Total Stop Bar Load | J134: =J30+J59+J67+J95+J126+J132 -> 9946 | K134: VA
A136: CCR LOAD CALCULATOR | © 2009-2024 ADB SAFEGATE | All Rights Reserved.

Sheet Other Loads
B2: Other Load(s) | N2: * = Select from dropdown or type in value
B4: 1. | C4: Other Load Description (Select From Dropdown or Type-in) | J4: 2. | K4: Other Load Description (Select From Dropdown or Type-in)
B5: * | C5: 4-Box (L-880) Type B (Current Driven) Single Channel PAPI | J5: *
C7: Device VA | D7: 310 | E7: VA | K7: Device VA | M7: VA
C9: Isolation Transformer Used (if any) | D9: 300 | E9: VA | K9: Isolation Transformer Used (if any) | M9: VA
C11: Isolation Transformer Losses (if any) | D11: =IF(D9,VLOOKUP(D9,variables!$L$5:$M$17,2,FALSE),0) -> 30 | E11: VA | K11: Isolation Transformer Losses (if any) | L11: =IF(L9,VLOOKUP(L9,variables!$L$5:$M$17,2,FALSE),0) -> 0 | M11: VA
C13: Other Losses (if any) | E13: VA | K13: Other Losses (if any) | M13: VA
C15: Quantity | D15: 1 | K15: Quantity
C17: Total Load | D17: =(D7+D11+D13)*D15 -> 340 | E17: VA | K17: Total Load | L17: =(L7+L11+L13)*L15 -> 0 | M17: VA
B21: 3. | C21: Other Load Description (Select From Dropdown or Type-in) | J21: 4. | K21: Other Load Description (Select From Dropdown or Type-in)
B22: * | J22: *
C24: Device VA | E24: VA | K24: Device VA | M24: VA
C26: Isolation Transformer Used (if any) | E26: VA | K26: Isolation Transformer Used (if any) | M26: VA
C28: Isolation Transformer Losses (if any) | D28: =IF(D26,VLOOKUP(D26,variables!$L$5:$M$17,2,FALSE),0) -> 0 | E28: VA | K28: Isolation Transformer Losses (if any) | L28: =IF(L26,VLOOKUP(L26,variables!$L$5:$M$17,2,FALSE),0) -> 0 | M28: VA
C30: Other Losses (if any) | E30: VA | K30: Other Losses (if any) | M30: VA
C32: Quantity | K32: Quantity
C34: Total Load | D34: =(D24+D28+D30)*D32 -> 0 | E34: VA | K34: Total Load | L34: =(L24+L28+L30)*L32 -> 0 | M34: VA
B38: 5. | C38: Other Load Description (Select From Dropdown or Type-in) | J38: 6. | K38: Other Load Description (Select From Dropdown or Type-in)
B39: * | J39: *
C41: Device VA | E41: VA | K41: Device VA | M41: VA
C43: Isolation Transformer Used (if any) | E43: VA | K43: Isolation Transformer Used (if any) | M43: VA
C45: Isolation Transformer Losses (if any) | E45: VA | K45: Isolation Transformer Losses (if any) | M45: VA
C47: Other Losses (if any) | E47: VA | K47: Other Losses (if any) | M47: VA
C49: Quantity | K49: Quantity
C51: Total Load | D51: =(D41+D45+D47)*D49 -> 0 | E51: VA | K51: Total Load | L51: =(L41+L45+L47)*L49 -> 0 | M51: VA
B55: 7. | C55: Other Load Description (Select From Dropdown or Type-in) | J55: 8. | K55: Other Load Description (Select From Dropdown or Type-in)
B56: * | J56: *
C58: Device VA | E58: VA | K58: Device VA | M58: VA
C60: Isolation Transformer Used (if any) | E60: VA | K60: Isolation Transformer Used (if any) | M60: VA
C62: Isolation Transformer Losses (if any) | D62: =IF(D60,VLOOKUP(D60,variables!$L$5:$M$17,2,FALSE),0) -> 0 | E62: VA | K62: Isolation Transformer Losses (if any) | L62: =IF(L60,VLOOKUP(L60,variables!$L$5:$M$17,2,FALSE),0) -> 0 | M62: VA
C64: Other Losses (if any) | E64: VA | K64: Other Losses (if any) | M64: VA
C66: Quantity | K66: Quantity
C68: Total Load | D68: =(D58+D62+D64)*D66 -> 0 | E68: VA | K68: Total Load | L68: =(L58+L62+L64)*L66 -> 0 | M68: VA
B72: 9. | C72: Other Load Description (Select From Dropdown or Type-in) | J72: 10. | K72: Other Load Description (Select From Dropdown or Type-in)
B73: * | J73: *
C75: Device VA | E75: VA | K75: Device VA | M75: VA
C77: Isolation Transformer Used (if any) | E77: VA | K77: Isolation Transformer Used (if any) | M77: VA
C79: Isolation Transformer Losses (if any) | D79: =IF(D77,VLOOKUP(D77,variables!$L$5:$M$17,2,FALSE),0) -> 0 | E79: VA | K79: Isolation Transformer Losses (if any) | L79: =IF(L77,VLOOKUP(L77,variables!$L$5:$M$17,2,FALSE),0) -> 0 | M79: VA
C81: Other Losses (if any) | E81: VA | K81: Other Losses (if any) | M81: VA
C83: Quantity | K83: Quantity
C85: Total Load | D85: =(D75+D79+D81)*D83 -> 0 | E85: VA | K85: Total Load | L85: =(L75+L79+L81)*L83 -> 0 | M85: VA
K88: Total Other Load | L88: =$D17+$L17+$D34+$L34+$D51+$L51+$D68+$L68+$D85+$L85 -> 340 | M88: VA
A89: CCR LOAD CALCULATOR | © 2009-2024 ADB SAFEGATE | All Rights Reserved.

Sheet Load Summary
A3: CCR Load Summary
A5: Airport Name | B5: ='Series Circuit Parameters'!D3 & "" -> <Enter Airport Name Here>
A7: Circuit Identification | B7: ='Series Circuit Parameters'!D5 & "" -> <Enter Circuit ID as required>
A9: Maximum CCR Output Current | B9: ='Series Circuit Parameters'!D7 & "" -> 6.6
A11: Number of CCR Steps | B11: ='Series Circuit Parameters'!D9 & "" -> 5-Step (2.8A-6.6A)
A13: Input Voltage | B13: ='Series Circuit Parameters'!D11 & "" -> 480Vac
A15: Frequency | B15: ='Series Circuit Parameters'!D13 & "" -> 60Hz
A17: CCR Architecture | B17: ='Series Circuit Parameters'!D17 & "" -> Ferroresonant
A19: Load Description | B19: Device Description | H19: Manuf. | I19: Isolation Transformer Used | J19: Qty. | K19: Individual Device CCR Load VA | L19: Subtotal Load VA | M19: Subtotal Load Type VA
A20: Lamp Load 1 | B20: ='Lamp Load'!H6 & "" -> L-850C | H20: ='Lamp Load'!H8 & "" -> ADB Safegate | I20: ='Lamp Load'!H26 & "W" -> 45W | J20: ='Lamp Load'!H10 -> 100 | K20: ='Lamp Load'!H12 -> 45 | L20: ='Lamp Load'!L30 -> 5700
A21: Lamp Load 2 | B21: ='Lamp Load'!H36 & "" -> L-850C | H21: ='Lamp Load'!H38 & "" -> ADB Safegate | I21: ='Lamp Load'!H56 & "W" -> 45W | J21: ='Lamp Load'!H40 -> 1 | K21: ='Lamp Load'!H42 -> 45 | L21: ='Lamp Load'!L60 -> 57
A22: Lamp Load 3 | B22: ='Lamp Load'!H66 & "" ->  | H22: ='Lamp Load'!H68 & "" ->  | I22: ='Lamp Load'!H86 & "W" -> W | J22: ='Lamp Load'!H70 -> 0 | K22: ='Lamp Load'!H72 -> 0 | L22: ='Lamp Load'!L90 -> 0
A23: Lamp Load 4 | B23: ='Lamp Load'!H96 & "" ->  | H23: ='Lamp Load'!H98 & "" ->  | I23: ='Lamp Load'!H116 & "W" -> 45W | J23: ='Lamp Load'!H100 -> 0 | K23: ='Lamp Load'!H102 -> 0 | L23: ='Lamp Load'!L120 -> 0
L24: Total Lamp Load | M24: =ROUND(lampVAtotal,0) -> 5757 | N24: VA
A25: LED Load 1 | B25: ='LED Load'!H5 & "" -> L-850B(L) | H25: ='LED Load'!H7 & "" -> ADB Safegate | I25: ='LED Load'!H26 & "W" -> 20W | J25: ='LED Load'!H9 -> 20 | K25: ='LED Load'!H11 -> 12 | L25: ='LED Load'!L30 -> 360
A26: LED Load 2 | B26: ='LED Load'!H36 & "" -> L-852D(L) | H26: ='LED Load'!H38 & "" -> ADB Safegate | I26: ='LED Load'!H57 & "W" -> 15W | J26: ='LED Load'!H40 -> 0 | K26: ='LED Load'!H42 -> 22 | L26: ='LED Load'!L61 -> 0
A27: LED Load 3 | B27: ='LED Load'!H67 & "" -> L-862E(L) | H27: ='LED Load'!H69 & "" -> ADB Safegate | I27: ='LED Load'!H88 & "W" -> 45W | J27: ='LED Load'!H71 -> 0 | K27: ='LED Load'!H73 -> 33 | L27: ='LED Load'!L92 -> 0
A28: LED Load 4 | B28: ='LED Load'!H98 & "" -> L-850B(L) | H28: ='LED Load'!H100 & "" -> ADB Safegate | I28: ='LED Load'!H119 & "W" -> 25W | J28: ='LED Load'!H102 -> 0 | K28: ='LED Load'!H104 -> 22 | L28: ='LED Load'!L123 -> 0
L29: Total LED Load | M29: =ROUND(LEDVAtotal,0) -> 360 | N29: VA
A30: Sign Load 1 | B30: Sign | C30: ='Sign Load'!G8 & "" -> Size 2 | D30: ='Sign Load'!G10 & "" -> 4 Module | E30: ='Sign Load'!G12 & "" -> LED | F30: ='Sign Load'!F14 & "" -> FAA LED | G30: ='Sign Load'!E16 & "" -> Style 2 (4.8A - 6.6A) 3-step | H30: ='Sign Load'!G6 & "" -> ADB Safegate | I30: =signTX1 & "W" -> 300W | J30: ='Sign Load'!G22 & "" -> 2 | K30: ='Sign Load'!F20 & "" -> 255 | L30: ='Sign Load'!E24 -> 510
A31: Sign Load 2 | B31: Sign | C31: ='Sign Load'!G32 & "" -> Size 2 | D31: ='Sign Load'!G34 & "" -> 4 Module | E31: ='Sign Load'!G36 & "" -> LED | F31: ='Sign Load'!F38 & "" -> FAA LED | G31: ='Sign Load'!E40 & "" -> Style 3 (2.8A - 6.6A) 5-step | H31: ='Sign Load'!G30 & "" -> ADB Safegate | I31: =signTX2 & "W" -> 300W | J31: ='Sign Load'!G46 & "" -> 0 | K31: ='Sign Load'!F44 & "" -> 255 | L31: ='Sign Load'!E48 -> 0
A32: Sign Load 3 | B32: Sign | C32: ='Sign Load'!G56 & "" -> Size 2 | D32: ='Sign Load'!G58 & "" -> 4 Module | E32: ='Sign Load'!G60 & "" -> LED | F32: ='Sign Load'!F62 & "" -> FAA LED | G32: ='Sign Load'!E64 & "" -> Style 3 (2.8A - 6.6A) 5-step | H32: ='Sign Load'!G54 & "" -> ADB Safegate | I32: =signTX3 & "W" -> 300W | J32: ='Sign Load'!G70 & "" -> 0 | K32: ='Sign Load'!F68 & "" -> 255 | L32: ='Sign Load'!E72 -> 0
A33: Sign Load 4 | B33: Sign | C33: ='Sign Load'!G80 & "" -> Size 2 | D33: ='Sign Load'!G82 & "" -> 4 Module | E33: ='Sign Load'!G84 & "" -> LED | F33: ='Sign Load'!F86 & "" -> FAA LED | G33: ='Sign Load'!E88 & "" -> Style 3 (2.8A - 6.6A) 5-step | H33: ='Sign Load'!G78 & "" -> ADB Safegate | I33: =signTX4 & "W" -> 300W | J33: ='Sign Load'!G94 & "" -> 0 | K33: ='Sign Load'!F92 & "" -> 255 | L33: ='Sign Load'!E96 -> 0
A34: Sign Load 5 | B34: Sign | C34: ='Sign Load'!G104 & "" -> Size 2 | D34: ='Sign Load'!G106 & "" -> 4 Module | E34: ='Sign Load'!G108 & "" -> LED | F34: ='Sign Load'!F110 & "" -> FAA LED | G34: ='Sign Load'!E112 & "" -> Style 3 (2.8A - 6.6A) 5-step | H34: ='Sign Load'!G102 & "" -> ADB Safegate | I34: =signTX5 & "W" -> 300W | J34: ='Sign Load'!G118 & "" -> 0 | K34: ='Sign Load'!F116 & "" -> 255 | L34: ='Sign Load'!E120 -> 0
L35: Total Sign Load | M35: =ROUND(signVAtotal,0) -> 510 | N35: VA
A36: In-pavement RGL Fixture Load | B36: ='In-pavement RGL'!G6 -> L-852G(L) | C36: ='In-pavement RGL'!G12 & "" -> Un-Monitored | H36: ='In-pavement RGL'!G8 & "" -> ADB Safegate | I36: ='In-pavement RGL'!G14 & "W" -> 45W | J36: ='In-pavement RGL'!I30 -> 1 | K36: ='In-pavement RGL'!G10 -> 105 | L36: ='In-pavement RGL'!K39 -> 219
A37: In-pavement RGL Monitoring Device Load | H37: ='In-pavement RGL'!G8 & "" -> ADB Safegate | J37: =IF('In-pavement RGL'!G34,1,0) -> 0 | K37: ='In-pavement RGL'!G34 -> 0 | L37: ='In-pavement RGL'!K41 -> 0
L38: Total In-pavement RGL Load | M38: =ROUND(irglVAtotal,0) -> 219 | N38: VA
A39: Elevated RGL Fixture Load | B39: ='Elevated RGL'!G4 -> L-804 | C39: ='Elevated RGL'!G31 & "" -> Un-Monitored | H39: ='Elevated RGL'!G6 & "" -> ADB Safegate | I39: ='Elevated RGL'!G23 & "W" -> W | J39: ='Elevated RGL'!I27 -> 4 | K39: ='Elevated RGL'!G8 -> 100 | L39: ='Elevated RGL'!J37 -> 
A40: Elevated RGL Monitoring Device Load | L40: ='Elevated RGL'!J38 -> 0
L41: Total Elevated RGL Load | M41: =ROUND(L804VAtotal,0) ->  | N41: VA
A42: Stop Bar In-pavement Load | B42: ='Stop Bar'!G6 & "" -> L-852S | H42: ='Stop Bar'!G8 & "" -> ADB Safegate | I42: ='Stop Bar'!G24 & "W" -> 45W | J42: ='Stop Bar'!G30 -> 10 | K42: ='Stop Bar'!G28 -> 62.9 | L42: ='Stop Bar'!J30 -> 629
A43: Stop Bar Elevated Fixture Load | B43: ='Stop Bar'!G35 & "" -> L-862S | H43: ='Stop Bar'!G37 & "" -> ADB Safegate | I43: ='Stop Bar'!G53 & "W" -> 150W | J43: ='Stop Bar'!G59 -> 2 | K43: ='Stop Bar'!G57 -> 195 | L43: ='Stop Bar'!J59 -> 390
A44: Stop Bar Sensor Load | B44: ='Stop Bar'!G63 & "" -> Inductive Loop | J44: ='Stop Bar'!G67 -> 2 | K44: ='Stop Bar'!G65 & "W" -> 564W | L44: ='Stop Bar'!J67 -> 1128
A45: Stop Bar Elevated RGL Load | B45: ='Stop Bar'!G73 & "" -> L-852G | H45: ='Stop Bar'!G104 & "" -> ADB Safegate | I45: ='Stop Bar'!G120 & "W" -> 100W | J45: ='Stop Bar'!G126 -> 4 | K45: ='Stop Bar'!G106 -> 100 | L45: ='Stop Bar'!J126 -> 540
A46: Stop Bar Monitoring Device Load | L46: ='Stop Bar'!J132 -> 32
L47: Total Stop Bar Load | M47: =ROUND(stopbarVAtotal,0) -> 9946 | N47: VA
A48: Other Load 1 | B48: ='Other Loads'!C5 & "" -> 4-Box (L-880) Type B (Current Driven) Single Channel PAPI | J48: ='Other Loads'!$D15 -> 1 | K48: ='Other Loads'!$D7 -> 310 | L48: ='Other Loads'!$D17 -> 340
A49: Other Load 2 | B49: ='Other Loads'!K5 & "" ->  | J49: ='Other Loads'!$L15 -> 0 | K49: ='Other Loads'!$L7 -> 0 | L49: ='Other Loads'!$L17 -> 0
A50: Other Load 3 | B50: ='Other Loads'!C22 & "" ->  | J50: ='Other Loads'!$D32 -> 0 | K50: ='Other Loads'!$D24 -> 0 | L50: ='Other Loads'!$D34 -> 0
A51: Other Load 4 | B51: ='Other Loads'!K22 & "" ->  | J51: ='Other Loads'!$L32 -> 0 | K51: ='Other Loads'!$L24 -> 0 | L51: ='Other Loads'!$L34 -> 0
A52: Other Load 5 | B52: ='Other Loads'!C39 & "" ->  | J52: ='Other Loads'!$D49 -> 0 | K52: ='Other Loads'!$D41 -> 0 | L52: ='Other Loads'!$D51 -> 0
A53: Other Load 6 | B53: ='Other Loads'!K39 & "" ->  | J53: ='Other Loads'!$L49 -> 0 | K53: ='Other Loads'!$L41 -> 0 | L53: ='Other Loads'!$L51 -> 0
A54: Other Load 7 | B54: ='Other Loads'!C56 & "" ->  | J54: ='Other Loads'!$D66 -> 0 | K54: ='Other Loads'!$D58 -> 0 | L54: ='Other Loads'!$D68 -> 0
A55: Other Load 8 | B55: ='Other Loads'!K56 & "" ->  | J55: ='Other Loads'!$L66 -> 0 | K55: ='Other Loads'!$L58 -> 0 | L55: ='Other Loads'!$L68 -> 0
A56: Other Load 9 | B56: ='Other Loads'!C73 & "" ->  | J56: ='Other Loads'!$D83 -> 0 | K56: ='Other Loads'!$D75 -> 0 | L56: ='Other Loads'!$D85 -> 0
A57: Other Load 10 | B57: ='Other Loads'!K73 & "" ->  | J57: ='Other Loads'!$L83 -> 0 | K57: ='Other Loads'!$L75 -> 0 | L57: ='Other Loads'!$L85 -> 0
L58: Total Other Load | M58: =ROUND(otherVAtotal,0) -> 340 | N58: VA
A60: L-824 Wire Load | B60: L-824 | C60: ='Series Circuit Parameters'!D19 & " " & 'Series Circuit Parameters'!D15 -> 10000 Feet | D60: ='Series Circuit Parameters'!D21 & " " & 'Series Circuit Parameters'!E21 -> 8 AWG | J60: 1 | K60: ='Series Circuit Parameters'!F26 -> 287.5 | L60: ='Series Circuit Parameters'!F26 -> 287.5
L61: Total Wire Load | M61: =ROUND(l824VAtotal,0) -> 288 | N61: VA
A62: Total Calculated CCR Load | B62: =M62 ->  | C62: VA | L62: Total Calculated CCR Load | M62: =M24+M29+M35+M38+M41+M47+M58+M61 ->  | N62: VA
A64: Desired Safety Factor | B64: 15 | C64: % Type in the percentage you want the CCR load to stay below the CCR rating.
A66: CCR Load with Safety Factor | B66: =ROUND(((M62*(B64/100))+M62),0) ->  | C66: VA
A68: Recommended CCR size | B68: 0 | C68: KW
A70: Actual CCR Safety Factor | B70: =IF(B68>0,ROUND(((1-M62/(B68*1000))* 100),0),0) -> 0 | C70: % Below maximum CCR rating.
A72: Recommended Tap Setting | B72: 90 | C72: % Tap (Thyristor or SCR CCR only)
A74: Do you want to export summary data to an overall CCR summary spreadsheet? | C74: EXPORT | D74: Clicking on EXPORT will export this sheet to a new spreadsheet you can save on your computer.
A76: CCR LOAD CALCULATOR | © 2009-2024 ADB SAFEGATE | All Rights Reserved.

Sheet variables (hidden)
J1: =IF('Series Circuit Parameters'!$D$15="Feet",2,3) -> 2
A4: output | C4: frequency | E4: architecture | G4: units | I4: awg | J4: f | K4: m | L4: watts | M4: xfmrloss | O4: fixture | P4: fixture2 | R4: signtype
A5: 6.6 | C5: 60Hz | E5: Ferroresonant | G5: Feet | H5: AWG | I5: 6 | J5: 0.42 | K5: 5.61 | L5: 10 | M5: 3 | O5: L-850A | P5: L-850A(L) | R5: L-858Y - Direction/Destination/Boundary | T5: L-830-16 | U5: 10/15 | V5: 6.6A/6.6A | W5: 70 | X5: 3 / 4.5
A6: 20 | C6: 50Hz | E6: Thyristor | G6: Meters | H6: mm2 | I6: 8 | J6: 0.66 | K6: 3.54 | L6: 15 | M6: 4.5 | O6: L-850B | P6: L-850B(L) | R6: L-858R - Mandatory | T6: L-830-17 | U6: 20/25 | V6: 6.6A/6.6A | W6: 70 | X6: 6 / 7.5
E7: Other Manufacturer SCR | L7: 20 | M7: 6 | O7: L-850C | P7: L-850C(L) | R7: L-858L - Runway/Taxiway Location | T7: L-830-1 | U7: 30/45 | V7: 6.6A/6.6A | W7: 80 | X7: 6/9
A8: signman | C8: signsize | G8: lamptype | I8: 12 | J8: 1.71 | K8: 2.16 | L8: 25 | M8: 7.5 | O8: L-850D | P8: L-850D(L) | R8: L-858B - Runway Distance Remaining | T8: L-830-2 | U8: 30/45 | V8: 20A/6.6A | W8: 80 | X8: 6/9
A9: ADB Safegate | C9: Size 1 | E9: gendesc | G9: Halogen | I9: 16 | J9: 4.35 | K9: 1.37 | L9: 30 | M9: 6 | O9: L-850E | P9: L-850T(L) | T9: L-830-3 | U9: 65 | V9: 6.6A/6.6A | W9: 80 | X9: 13
C10: Size 2 | E10: 1 Module | G10: Fluorescent | L10: 45 | M10: 9 | O10: L-850F | P10: L-852A(L) | R10: signstyle | T10: L-830-4 | U10: 100 | V10: 6.6A/6.6A | W10: 85 | X10: 15
A11: lampwatt | C11: Size 3 | E11: 2 Module | G11: LED | I11: lamparch | L11: 65 | M11: 13 | O11: L-852A | P11: L-852B(L) | R11: Style 2 (4.8A - 6.6A) 3-step | T11: L-830-5 | U11: 100 | V11: 20A/6.6A | W11: 85 | X11: 15
A12: 105 | C12: Size 4 | E12: 3 Module | I12: Low VA | L12: 100 | M12: 15 | O12: L-852B | P12: L-852C(L) | R12: Style 3 (2.8A - 6.6A) 5-step | T12: L-830-18 | U12: 150 | V12: 6.6A/6.6A | W12: 85 | X12: 22.5
C13: Size 5 | E13: 4 Module | G13: watts2 | I13: Standard VA | L13: 150 | M13: 20 | O13: L-852C | P13: L-852D(L) | R13: Style 5 (5.5A only) | T13: L-830-19 | U13: 150 | V13: 20A/20A | W13: 85 | X13: 22.5
A14: monitor | E14: 700 mm | G14: 100 | I14: 5.5A (Single-step) | L14: 200 | M14: 22.5 | O14: L-852D | P14: L-852J(L) | T14: L-830-6 | U14: 200 | V14: 6.6A/6.6A | W14: 90 | X14: 20
A15: Monitored | C15: pulsing | E15: 900 mm | I15: Fluorescent | L15: 300 | M15: 30 | O15: L-852E | P15: L-852K(L) | R15: otherdesc | T15: L-830-7 | U15: 200 | V15: 20A/6.6A | W15: 90 | X15: 20
A16: Un-Monitored | C16: BRITE II Single Remote | E16: 1100 mm | G16: fixdesc | I16: FAA LED | L16: 500 | M16: 50 | O16: L-852F | P16: L-852S(L) | R16: L-849A/C/E REIL with PA-4 | T16: L-830-8 | U16: 300 | V16: 6.6A/20A | W16: 90 | X16: 30
C17: BRITE III (AGLAS) Single Remote | E17: 1300 mm | G17: L-852S | I17: ICAO LED (Single Sided) (600 mm) | L17: 1500 | M17: 75 | O17: L-852T | P17: L-852T(L) | R17: L-849A/E LED REIL | T17: L-830-9 | U17: 300 | V17: 20A/20A | W17: 90 | X17: 30
C18: LINC 360 Single Remote | E18: 1500 mm | G18: L-852G/S | I18: ICAO LED (Dual Sided) (600 mm) | O18: L-860 | P18: L-861(L) | R18: L-849C LED REIL | T18: L-830-10 | U18: 300 | V18: 6.6A/6.6A | W18: 90 | X18: 30
E19: 1700 mm | I19: ICAO LED (Single Sided) (800 mm) | O19: L-860E | P19: L-861E(L) | R19: 4-Box (L-880) Type B (Current Driven) 2-Lamp Optical Box | T19: L-830-11 | U19: 300 | V19: 20A/6.6A | W19: 90 | X19: 30
C20: Thyristor | E20: 1900 mm | G20: irgldesc | I20: ICAO LED (Dual Sided) (800 mm) | K20: 2.5 | M20: 5.61 | O20: L-861 | P20: L-861T(L) | R20: 4-Box (L-880) Type B (Current Driven) 3-Lamp Optical Box | T20: L-830-12 | U20: 500 | V20: 6.6A/20A | W20: 90 | X20: 50
C21: 10 | E21: 2100 mm | G21: L-852G | K21: 4 | M21: 3.54 | O21: L-861E | P21: L-862(L) | R21: 2-Box (L-881) Type B (Current Driven) 2-Lamp Optical Box | T21: L-830-13 | U21: 500 | V21: 20A/20A | W21: 90 | X21: 50
C22: 20 | E22: 2300 mm | I22: sensor | K22: 6 | L22: 0.42 | M22: 2.16 | O22: L-861T | P22: L-862E(L) | R22: 2-Box (L-881) Type B (Current Driven) 3-Lamp Optical Box | T22: L-830-15 | U22: 500 | V22: 20A/6.6A | W22: 90 | X22: 50
C23: 30 | E23: 2500 mm | G23: ergldesc | I23: Microwave | K23: 8 | L23: 0.66 | O23: L-861SE | R23: 4-Box (L-880) Type B (Current Driven) Single Channel PAPI
C24: 40 | E24: 2700 mm | G24: L-804 | I24: Inductive Loop | K24: 10 | M24: 1.37 | O24: L-862 | R24: 2-Box (L-881) Type B (Current Driven) Single Channel PAPI
C25: 50 | E25: 2900 mm | K25: 12 | L25: 1.71 | O25: L-862E | R25: 4-Box LED PAPI (L-880) (Current Driven) | S25: 15
C26: 60 | E26: 3300 mm | I26: transform | K26: 16 | L26: 4.35 | O26: L-862S | R26: 2-Box LED PAPI (L-881) (Current Driven) | S26: 20
C27: 70 | E27: 3700 mm | I27: 65 | J27: 65 | K27: awg | M27: mm2 | O27: Approach (UEL) | R27: L-806 Wind Cone with PA-4 | S27: 25
C28: 80 | I28: 100 | J28: 100 | K28: 6 | L28: 0.42 | M28: 2.5 | N28: 5.61 | O28: Approach (PAR-56) | R28: L-807 Wind Cone with PA-4
C29: 90 | E29: inputvoltage | I29: 150 | J29: 150 | K29: 8 | L29: 0.66 | M29: 4 | N29: 3.54 | O29: Approach (In-pavement) | R29: L-806 LED Wind Cone Internally Lit (Current Driven)
C30: 100 | E30: 208Vac | I30: 200 | J30: 200 | K30: 12 | L30: 1.71 | M30: 6 | N30: 2.16 | R30: L-806 LED Wind Cone Externally Lit (Current Driven)
E31: 220Vac | I31: 300 | J31: 300 | K31: 16 | L31: 4.35 | M31: 10 | N31: 1.37 | R31: L-807 LED Wind Cone Internally Lit (Current Driven)
C32: yesno | E32: 230Vac | I32: 500 | J32: 500 | R32: L-807 LED Wind Cone Externally Lit (Current Driven)
C33: Yes | E33: 240Vac | I33: 300 (2) | J33: 600 | R33: fpulsing
C34: No | E34: 347Vac | I34: 500 & 300 | J34: 800 | R34: Internal PCB (unmonitored only)
E35: 380Vac | I35: 500 (2) | J35: 1000 | R35: BRITE II Dual Remote
C36: ccrsteps | E36: 400Vac | R36: BRITE III Dual Remote (AGLAS)
C37: 3-Step (4.8A-6.6A) | E37: 480Vac | R37: LINC 360 Dual Remote
C38: 5-Step (2.8A-6.6A) | E38: 600Vac | R38: npulsing
C39: 5-Step (8.5A-20A) | E39: 2400Vac | R39: BRITE II Dual Remote
C40: 1-Step (5.5A) | R40: BRITE III Dual Remote (AGLAS)
R41: LINC 360 Dual Remote

Sheet SL Table (hidden)
A1: type | B1: architecture | C1: style | D1: Sign Size | E1: watts | F1: Modules | G1: Transformer | H1: Lamps | I1: Power factor | J1: load
A2: Halogen | B2: Low Va | C2: 2 | D2: 1 | E2: 48 | F2: 1 | G2: 100 | H2: 1 | I2: 0.98 | J2: 106
A3: Halogen | B3: Low Va | C3: 2 | D3: 1 | E3: 48 | F3: 2 | G3: 200 | H3: 2 | I3: 0.99 | J3: 155
A4: Halogen | B4: Low Va | C4: 2 | D4: 1 | E4: 48 | F4: 3 | G4: 300 | H4: 3 | I4: 0.98 | J4: 202
A5: Halogen | B5: Low Va | C5: 2 | D5: 1 | E5: 48 | F5: 4 | G5: 300 | H5: 4 | I5: 0.99 | J5: 250
A6: Halogen | B6: Low Va | C6: 2 | D6: 2 | E6: 48 | F6: 1 | G6: 200 | H6: 2 | I6: 0.99 | J6: 155
A7: Halogen | B7: Low Va | C7: 2 | D7: 2 | E7: 48 | F7: 2 | G7: 300 | H7: 4 | I7: 0.99 | J7: 250
A8: Halogen | B8: Low Va | C8: 2 | D8: 2 | E8: 48 | F8: 3 | G8: 500 | H8: 6 | I8: 0.98 | J8: 340
A9: Halogen | B9: Low Va | C9: 2 | D9: 2 | E9: 48 | F9: 4 | G9: 300 (2) | H9: 8 | I9: 0.97 | J9: 450
A10: Halogen | B10: Low Va | C10: 2 | D10: 3 | E10: 48 | F10: 1 | G10: 200 | H10: 2 | I10: 0.99 | J10: 155
A11: Halogen | B11: Low Va | C11: 2 | D11: 3 | E11: 48 | F11: 2 | G11: 300 | H11: 4 | I11: 0.99 | J11: 250
A12: Halogen | B12: Low Va | C12: 2 | D12: 3 | E12: 48 | F12: 3 | G12: 500 | H12: 6 | I12: 0.98 | J12: 340
A13: Halogen | B13: Low Va | C13: 2 | D13: 3 | E13: 48 | F13: 4 | G13: 300 (2) | H13: 8 | I13: 0.97 | J13: 450
A14: Halogen | B14: Low Va | C14: 2 | D14: 4 | E14: 48 | F14: 1 | G14: 300 | H14: 4 | I14: 0.99 | J14: 250
A15: Halogen | B15: Low Va | C15: 2 | D15: 5 | E15: 48 | F15: 1 | G15: 200 | H15: 2 | I15: 0.99 | J15: 155
A16: Halogen | B16: Low Va | C16: 3 | D16: 1 | E16: 48 | F16: 1 | G16: 200 | H16: 1 | I16: 0.97 | J16: 105
A17: Halogen | B17: Low Va | C17: 3 | D17: 1 | E17: 48 | F17: 2 | G17: 300 | H17: 2 | I17: 0.98 | J17: 145
A18: Halogen | B18: Low Va | C18: 3 | D18: 1 | E18: 48 | F18: 3 | G18: 500 | H18: 3 | I18: 0.98 | J18: 190
A19: Halogen | B19: Low Va | C19: 3 | D19: 1 | E19: 48 | F19: 4 | G19: 500 | H19: 4 | I19: 0.98 | J19: 233
A20: Halogen | B20: Low Va | C20: 3 | D20: 2 | E20: 48 | F20: 1 | G20: 300 | H20: 2 | I20: 0.98 | J20: 145
A21: Halogen | B21: Low Va | C21: 3 | D21: 2 | E21: 48 | F21: 2 | G21: 500 | H21: 4 | I21: 0.98 | J21: 233
A22: Halogen | B22: Low Va | C22: 3 | D22: 2 | E22: 48 | F22: 3 | G22: 500 & 300 | H22: 6 | I22: 0.98 | J22: 350
A23: Halogen | B23: Low Va | C23: 3 | D23: 2 | E23: 48 | F23: 4 | G23: 500 (2) | H23: 8 | I23: 0.97 | J23: 440
A24: Halogen | B24: Low Va | C24: 3 | D24: 3 | E24: 48 | F24: 1 | G24: 300 | H24: 2 | I24: 0.98 | J24: 145
A25: Halogen | B25: Low Va | C25: 3 | D25: 3 | E25: 48 | F25: 2 | G25: 500 | H25: 4 | I25: 0.98 | J25: 233
A26: Halogen | B26: Low Va | C26: 3 | D26: 3 | E26: 48 | F26: 3 | G26: 500 & 300 | H26: 6 | I26: 0.98 | J26: 350
A27: Halogen | B27: Low Va | C27: 3 | D27: 3 | E27: 48 | F27: 4 | G27: 500 (2) | H27: 8 | I27: 0.97 | J27: 440
A28: Halogen | B28: Low Va | C28: 3 | D28: 4 | E28: 48 | F28: 1 | G28: 500 | H28: 4 | I28: 0.98 | J28: 233
A29: Halogen | B29: Low Va | C29: 3 | D29: 5 | E29: 48 | F29: 1 | G29: 300 | H29: 2 | I29: 0.98 | J29: 145
A30: Halogen | B30: Low Va | C30: 5 | D30: 1 | E30: 48 | F30: 1 | G30: 65 | H30: 1 | I30: 0.99 | J30: 48
A31: Halogen | B31: Low Va | C31: 5 | D31: 1 | E31: 48 | F31: 2 | G31: 100 | H31: 2 | I31: 0.99 | J31: 96
A32: Halogen | B32: Low Va | C32: 5 | D32: 1 | E32: 48 | F32: 3 | G32: 200 | H32: 3 | I32: 0.99 | J32: 144
A33: Halogen | B33: Low Va | C33: 5 | D33: 1 | E33: 48 | F33: 4 | G33: 200 | H33: 4 | I33: 0.99 | J33: 192
A34: Halogen | B34: Low Va | C34: 5 | D34: 2 | E34: 48 | F34: 1 | G34: 100 | H34: 2 | I34: 0.99 | J34: 96
A35: Halogen | B35: Low Va | C35: 5 | D35: 2 | E35: 48 | F35: 2 | G35: 200 | H35: 4 | I35: 0.99 | J35: 192
A36: Halogen | B36: Low Va | C36: 5 | D36: 2 | E36: 48 | F36: 3 | G36: 300 | H36: 6 | I36: 1 | J36: 288
A37: Halogen | B37: Low Va | C37: 5 | D37: 2 | E37: 48 | F37: 4 | G37: 500 | H37: 8 | I37: 0.98 | J37: 384
A38: Halogen | B38: Low Va | C38: 5 | D38: 3 | E38: 48 | F38: 1 | G38: 100 | H38: 2 | I38: 0.99 | J38: 96
A39: Halogen | B39: Low Va | C39: 5 | D39: 3 | E39: 48 | F39: 2 | G39: 200 | H39: 4 | I39: 0.99 | J39: 192
A40: Halogen | B40: Low Va | C40: 5 | D40: 3 | E40: 48 | F40: 3 | G40: 300 | H40: 6 | I40: 1 | J40: 288
A41: Halogen | B41: Low Va | C41: 5 | D41: 3 | E41: 48 | F41: 4 | G41: 500 | H41: 8 | I41: 0.98 | J41: 384
A42: Halogen | B42: Low Va | C42: 5 | D42: 4 | E42: 48 | F42: 1 | G42: 200 | H42: 4 | I42: 0.99 | J42: 192
A43: Halogen | B43: Low Va | C43: 5 | D43: 5 | E43: 48 | F43: 1 | G43: 100 | H43: 2 | I43: 0.99 | J43: 96
A44: Halogen | B44: Standard Va | C44: 2 | D44: 1 | E44: 48 | F44: 1 | G44: 30/45 | H44: 1 | I44: 0.59 | J44: 104
A45: Halogen | B45: Standard Va | C45: 2 | D45: 1 | E45: 48 | F45: 2 | G45: 100 | H45: 2 | I45: 0.46 | J45: 222
A46: Halogen | B46: Standard Va | C46: 2 | D46: 1 | E46: 48 | F46: 3 | G46: 100 | H46: 3 | I46: 0.52 | J46: 302
A47: Halogen | B47: Standard Va | C47: 2 | D47: 1 | E47: 48 | F47: 4 | G47: 200 | H47: 4 | I47: 0.52 | J47: 319
A48: Halogen | B48: Standard Va | C48: 2 | D48: 2 | E48: 48 | F48: 1 | G48: 100 | H48: 2 | I48: 0.46 | J48: 222
A49: Halogen | B49: Standard Va | C49: 2 | D49: 2 | E49: 48 | F49: 2 | G49: 200 | H49: 4 | I49: 0.52 | J49: 319
A50: Halogen | B50: Standard Va | C50: 2 | D50: 2 | E50: 48 | F50: 3 | G50: 300 | H50: 6 | I50: 0.48 | J50: 460
A51: Halogen | B51: Standard Va | C51: 2 | D51: 2 | E51: 48 | F51: 4 | G51: 300 | H51: 8 | I51: 0.53 | J51: 570
A52: Halogen | B52: Standard Va | C52: 2 | D52: 3 | E52: 48 | F52: 1 | G52: 100 | H52: 2 | I52: 0.46 | J52: 222
A53: Halogen | B53: Standard Va | C53: 2 | D53: 3 | E53: 48 | F53: 2 | G53: 200 | H53: 4 | I53: 0.52 | J53: 319
A54: Halogen | B54: Standard Va | C54: 2 | D54: 3 | E54: 48 | F54: 3 | G54: 300 | H54: 6 | I54: 0.48 | J54: 460
A55: Halogen | B55: Standard Va | C55: 2 | D55: 3 | E55: 48 | F55: 4 | G55: 300 | H55: 8 | I55: 0.53 | J55: 570
A56: Halogen | B56: Standard Va | C56: 2 | D56: 4 | E56: 48 | F56: 1 | G56: 200 | H56: 4 | I56: 0.52 | J56: 319
A57: Halogen | B57: Standard Va | C57: 2 | D57: 5 | E57: 48 | F57: 1 | G57: 100 | H57: 2 | I57: 0.46 | J57: 222
A58: Halogen | B58: Standard Va | C58: 3 | D58: 1 | E58: 48 | F58: 1 | G58: 100 | H58: 1 | I58: 0.21 | J58: 231
A59: Halogen | B59: Standard Va | C59: 3 | D59: 1 | E59: 48 | F59: 2 | G59: 200 | H59: 2 | I59: 0.32 | J59: 316
A60: Halogen | B60: Standard Va | C60: 3 | D60: 1 | E60: 48 | F60: 3 | G60: 300 | H60: 3 | I60: 0.24 | J60: 641
A61: Halogen | B61: Standard Va | C61: 3 | D61: 1 | E61: 48 | F61: 4 | G61: 500 | H61: 4 | I61: 0.31 | J61: 652
A62: Halogen | B62: Standard Va | C62: 3 | D62: 2 | E62: 48 | F62: 1 | G62: 200 | H62: 2 | I62: 0.32 | J62: 316
A63: Halogen | B63: Standard Va | C63: 3 | D63: 2 | E63: 48 | F63: 2 | G63: 300 | H63: 4 | I63: 0.21 | J63: 652
A64: Halogen | B64: Standard Va | C64: 3 | D64: 2 | E64: 48 | F64: 3 | G64: 500 | H64: 6 | I64: 0.23 | J64: 910
A65: Halogen | B65: Standard Va | C65: 3 | D65: 2 | E65: 48 | F65: 4 | G65: 300 (2) | H65: 8 | I65: 0.31 | J65: 1304
A66: Halogen | B66: Standard Va | C66: 3 | D66: 3 | E66: 48 | F66: 1 | G66: 200 | H66: 2 | I66: 0.32 | J66: 316
A67: Halogen | B67: Standard Va | C67: 3 | D67: 3 | E67: 48 | F67: 2 | G67: 300 | H67: 4 | I67: 0.21 | J67: 652
A68: Halogen | B68: Standard Va | C68: 3 | D68: 3 | E68: 48 | F68: 3 | G68: 500 | H68: 6 | I68: 0.23 | J68: 910
A69: Halogen | B69: Standard Va | C69: 3 | D69: 3 | E69: 48 | F69: 4 | G69: 300 (2) | H69: 8 | I69: 0.31 | J69: 1304
A70: Halogen | B70: Standard Va | C70: 3 | D70: 4 | E70: 48 | F70: 1 | G70: 500 | H70: 4 | I70: 0.31 | J70: 652
A71: Halogen | B71: Standard Va | C71: 3 | D71: 5 | E71: 48 | F71: 1 | G71: 300 | H71: 2 | I71: 0.32 | J71: 316
A72: Fluorescent | B72: Fluorescent | C72: 2 | D72: 1 | E72: 18 | F72: 1 | G72: 100 | H72: 1 | I72: 0.74 | J72: 57
A73: Fluorescent | B73: Fluorescent | C73: 2 | D73: 1 | E73: 18 | F73: 2 | G73: 200 | H73: 2 | I73: 0.58 | J73: 119
A74: Fluorescent | B74: Fluorescent | C74: 2 | D74: 1 | E74: 18 | F74: 3 | G74: 200 | H74: 3 | I74: 0.61 | J74: 147
A75: Fluorescent | B75: Fluorescent | C75: 2 | D75: 1 | E75: 18 | F75: 4 | G75: 300 | H75: 4 | I75: 0.62 | J75: 178
A76: Fluorescent | B76: Fluorescent | C76: 2 | D76: 2 | E76: 18 | F76: 1 | G76: 200 | H76: 2 | I76: 0.58 | J76: 119
A77: Fluorescent | B77: Fluorescent | C77: 2 | D77: 2 | E77: 18 | F77: 2 | G77: 300 | H77: 4 | I77: 0.62 | J77: 178
A78: Fluorescent | B78: Fluorescent | C78: 2 | D78: 2 | E78: 18 | F78: 3 | G78: 300 | H78: 6 | I78: 0.64 | J78: 229
A79: Fluorescent | B79: Fluorescent | C79: 2 | D79: 2 | E79: 18 | F79: 4 | G79: 300 (2) | H79: 8 | I79: 0.55 | J79: 380
A80: Fluorescent | B80: Fluorescent | C80: 2 | D80: 3 | E80: 18 | F80: 1 | G80: 200 | H80: 2 | I80: 0.58 | J80: 119
A81: Fluorescent | B81: Fluorescent | C81: 2 | D81: 3 | E81: 18 | F81: 2 | G81: 300 | H81: 4 | I81: 0.62 | J81: 178
A82: Fluorescent | B82: Fluorescent | C82: 2 | D82: 3 | E82: 18 | F82: 3 | G82: 300 | H82: 6 | I82: 0.64 | J82: 229
A83: Fluorescent | B83: Fluorescent | C83: 2 | D83: 3 | E83: 18 | F83: 4 | G83: 300 (2) | H83: 8 | I83: 0.55 | J83: 380
A84: Fluorescent | B84: Fluorescent | C84: 2 | D84: 4 | E84: 18 | F84: 1 | G84: 300 | H84: 4 | I84: 0.62 | J84: 178
A85: Fluorescent | B85: Fluorescent | C85: 2 | D85: 5 | E85: 18 | F85: 1 | G85: 200 | H85: 2 | I85: 0.58 | J85: 119
A86: Fluorescent | B86: Fluorescent | C86: 3 | D86: 1 | E86: 18 | F86: 1 | G86: 100 | H86: 1 | I86: 0.6 | J86: 79
A87: Fluorescent | B87: Fluorescent | C87: 3 | D87: 1 | E87: 18 | F87: 2 | G87: 200 | H87: 2 | I87: 0.5 | J87: 157
A88: Fluorescent | B88: Fluorescent | C88: 3 | D88: 1 | E88: 18 | F88: 3 | G88: 300 | H88: 3 | I88: 0.49 | J88: 195
A89: Fluorescent | B89: Fluorescent | C89: 3 | D89: 1 | E89: 18 | F89: 4 | G89: 300 | H89: 4 | I89: 0.51 | J89: 231
A90: Fluorescent | B90: Fluorescent | C90: 3 | D90: 2 | E90: 18 | F90: 1 | G90: 200 | H90: 2 | I90: 0.5 | J90: 157
A91: Fluorescent | B91: Fluorescent | C91: 3 | D91: 2 | E91: 18 | F91: 2 | G91: 300 | H91: 4 | I91: 0.51 | J91: 231
A92: Fluorescent | B92: Fluorescent | C92: 3 | D92: 2 | E92: 18 | F92: 3 | G92: 500 | H92: 6 | I92: 0.46 | J92: 350
A93: Fluorescent | B93: Fluorescent | C93: 3 | D93: 2 | E93: 18 | F93: 4 | G93: 300 (2) | H93: 8 | I93: 0.44 | J93: 480
A94: Fluorescent | B94: Fluorescent | C94: 3 | D94: 3 | E94: 18 | F94: 1 | G94: 200 | H94: 2 | I94: 0.5 | J94: 157
A95: Fluorescent | B95: Fluorescent | C95: 3 | D95: 3 | E95: 18 | F95: 2 | G95: 300 | H95: 4 | I95: 0.51 | J95: 231
A96: Fluorescent | B96: Fluorescent | C96: 3 | D96: 3 | E96: 18 | F96: 3 | G96: 500 | H96: 6 | I96: 0.46 | J96: 350
A97: Fluorescent | B97: Fluorescent | C97: 3 | D97: 3 | E97: 18 | F97: 4 | G97: 300 (2) | H97: 8 | I97: 0.44 | J97: 480
A98: Fluorescent | B98: Fluorescent | C98: 3 | D98: 4 | E98: 18 | F98: 1 | G98: 300 | H98: 4 | I98: 0.51 | J98: 231
A99: Fluorescent | B99: Fluorescent | C99: 3 | D99: 5 | E99: 18 | F99: 1 | G99: 200 | H99: 2 | I99: 0.5 | J99: 157
A100: Fluorescent | B100: Fluorescent | C100: 5 | D100: 1 | E100: 18 | F100: 1 | G100: 100 | H100: 1 | I100: 0.8 | J100: 48
A101: Fluorescent | B101: Fluorescent | C101: 5 | D101: 1 | E101: 18 | F101: 2 | G101: 200 | H101: 2 | I101: 0.69 | J101: 99
A102: Fluorescent | B102: Fluorescent | C102: 5 | D102: 1 | E102: 18 | F102: 3 | G102: 200 | H102: 3 | I102: 0.72 | J102: 122
A103: Fluorescent | B103: Fluorescent | C103: 5 | D103: 1 | E103: 18 | F103: 4 | G103: 300 | H103: 4 | I103: 0.73 | J103: 148
A104: Fluorescent | B104: Fluorescent | C104: 5 | D104: 2 | E104: 18 | F104: 1 | G104: 200 | H104: 2 | I104: 0.69 | J104: 99
A105: Fluorescent | B105: Fluorescent | C105: 5 | D105: 2 | E105: 18 | F105: 2 | G105: 300 | H105: 4 | I105: 0.73 | J105: 148
A106: Fluorescent | B106: Fluorescent | C106: 5 | D106: 2 | E106: 18 | F106: 3 | G106: 300 | H106: 6 | I106: 0.75 | J106: 190
A107: Fluorescent | B107: Fluorescent | C107: 5 | D107: 2 | E107: 18 | F107: 4 | G107: 300 (2) | H107: 8 | I107: 0.66 | J107: 317
A108: Fluorescent | B108: Fluorescent | C108: 5 | D108: 3 | E108: 18 | F108: 1 | G108: 200 | H108: 2 | I108: 0.69 | J108: 99
A109: Fluorescent | B109: Fluorescent | C109: 5 | D109: 3 | E109: 18 | F109: 2 | G109: 300 | H109: 4 | I109: 0.73 | J109: 148
A110: Fluorescent | B110: Fluorescent | C110: 5 | D110: 3 | E110: 18 | F110: 3 | G110: 300 | H110: 6 | I110: 0.75 | J110: 190
A111: Fluorescent | B111: Fluorescent | C111: 5 | D111: 3 | E111: 18 | F111: 4 | G111: 300 (2) | H111: 8 | I111: 0.66 | J111: 317
A112: Fluorescent | B112: Fluorescent | C112: 5 | D112: 4 | E112: 18 | F112: 1 | G112: 300 | H112: 4 | I112: 0.73 | J112: 148
A113: Fluorescent | B113: Fluorescent | C113: 5 | D113: 5 | E113: 18 | F113: 1 | G113: 200 | H113: 2 | I113: 0.69 | J113: 99
A114: LED | B114: FAA LED | C114: 2 | D114: 1 | F114: 1 | G114: 65 | I114: 0.83 | J114: 85
A115: LED | B115: FAA LED | C115: 2 | D115: 1 | F115: 2 | G115: 100 | I115: 0.83 | J115: 95
A116: LED | B116: FAA LED | C116: 2 | D116: 1 | F116: 3 | G116: 100 | I116: 0.88 | J116: 95
A117: LED | B117: FAA LED | C117: 2 | D117: 1 | F117: 4 | G117: 100 | I117: 0.91 | J117: 95
A118: LED | B118: FAA LED | C118: 2 | D118: 2 | F118: 1 | G118: 65 | I118: 0.88 | J118: 90
A119: LED | B119: FAA LED | C119: 2 | D119: 2 | F119: 2 | G119: 100 | I119: 0.88 | J119: 95
A120: LED | B120: FAA LED | C120: 2 | D120: 2 | F120: 3 | G120: 100 | I120: 0.91 | J120: 100
A121: LED | B121: FAA LED | C121: 2 | D121: 2 | F121: 4 | G121: 100 | I121: 0.91 | J121: 100
A122: LED | B122: FAA LED | C122: 2 | D122: 3 | F122: 1 | G122: 100 | I122: 0.83 | J122: 95
A123: LED | B123: FAA LED | C123: 2 | D123: 3 | F123: 2 | G123: 100 | I123: 0.91 | J123: 95
A124: LED | B124: FAA LED | C124: 2 | D124: 3 | F124: 3 | G124: 100 | I124: 0.91 | J124: 100
A125: LED | B125: FAA LED | C125: 2 | D125: 3 | F125: 4 | G125: 150 | I125: 0.88 | J125: 115
A126: LED | B126: FAA LED | C126: 2 | D126: 4 | F126: 1 | G126: 100 | I126: 0.84 | J126: 95
A127: LED | B127: FAA LED | C127: 2 | D127: 5 | F127: 1 | G127: 100 | I127: 0.83 | J127: 95
A128: LED | B128: FAA LED | C128: 3 | D128: 1 | F128: 1 | G128: 100 | I128: 0.88 | J128: 75
A129: LED | B129: FAA LED | C129: 3 | D129: 1 | F129: 2 | G129: 150 | I129: 0.88 | J129: 95
A130: LED | B130: FAA LED | C130: 3 | D130: 1 | F130: 3 | G130: 150 | I130: 0.88 | J130: 95
A131: LED | B131: FAA LED | C131: 3 | D131: 1 | F131: 4 | G131: 150 | I131: 0.9 | J131: 100
A132: LED | B132: FAA LED | C132: 3 | D132: 2 | F132: 1 | G132: 150 | I132: 0.88 | J132: 90
A133: LED | B133: FAA LED | C133: 3 | D133: 2 | F133: 2 | G133: 150 | I133: 0.9 | J133: 95
A134: LED | B134: FAA LED | C134: 3 | D134: 2 | F134: 3 | G134: 150 | I134: 0.83 | J134: 100
A135: LED | B135: FAA LED | C135: 3 | D135: 2 | F135: 4 | G135: 150 | I135: 0.83 | J135: 100
A136: LED | B136: FAA LED | C136: 3 | D136: 3 | F136: 1 | G136: 150 | I136: 0.88 | J136: 95
A137: LED | B137: FAA LED | C137: 3 | D137: 3 | F137: 2 | G137: 150 | I137: 0.9 | J137: 100
A138: LED | B138: FAA LED | C138: 3 | D138: 3 | F138: 3 | G138: 150 | I138: 0.83 | J138: 100
A139: LED | B139: FAA LED | C139: 3 | D139: 3 | F139: 4 | G139: 200 | I139: 0.85 | J139: 115
A140: LED | B140: FAA LED | C140: 3 | D140: 4 | F140: 1 | G140: 150 | I140: 0.88 | J140: 95
A141: LED | B141: FAA LED | C141: 3 | D141: 5 | F141: 1 | G141: 150 | I141: 0.83 | J141: 95
A142: LED | B142: FAA LED | C142: 5 | D142: 1 | F142: 1 | G142: 65 | I142: 0.84 | J142: 75
A143: LED | B143: FAA LED | C143: 5 | D143: 1 | F143: 2 | G143: 65 | I143: 0.84 | J143: 85
A144: LED | B144: FAA LED | C144: 5 | D144: 1 | F144: 3 | G144: 100 | I144: 0.88 | J144: 85
A145: LED | B145: FAA LED | C145: 5 | D145: 1 | F145: 4 | G145: 100 | I145: 0.88 | J145: 95
A146: LED | B146: FAA LED | C146: 5 | D146: 2 | F146: 1 | G146: 65 | I146: 0.92 | J146: 75
A147: LED | B147: FAA LED | C147: 5 | D147: 2 | F147: 2 | G147: 100 | I147: 0.89 | J147: 85
A148: LED | B148: FAA LED | C148: 5 | D148: 2 | F148: 3 | G148: 100 | I148: 0.9 | J148: 100
A149: LED | B149: FAA LED | C149: 5 | D149: 2 | F149: 4 | G149: 100 | I149: 0.9 | J149: 100
A150: LED | B150: FAA LED | C150: 5 | D150: 3 | F150: 1 | G150: 65 | I150: 0.84 | J150: 85
A151: LED | B151: FAA LED | C151: 5 | D151: 3 | F151: 2 | G151: 100 | I151: 0.88 | J151: 95
A152: LED | B152: FAA LED | C152: 5 | D152: 3 | F152: 3 | G152: 100 | I152: 0.92 | J152: 100
A153: LED | B153: FAA LED | C153: 5 | D153: 3 | F153: 4 | G153: 100 | I153: 0.92 | J153: 110
A154: LED | B154: FAA LED | C154: 5 | D154: 4 | F154: 1 | G154: 65 | I154: 0.83 | J154: 85
A155: LED | B155: FAA LED | C155: 5 | D155: 5 | F155: 1 | G155: 65 | I155: 0.92 | J155: 85
A156: LED | B156: ICAO LED (Single Sided) (600mm) | C156: 2 | D156: 1 | F156: 1 | G156: 65 | I156: 0.83 | J156: 85
A157: LED | B157: ICAO LED (Single Sided) (600mm) | C157: 2 | D157: 1 | F157: 2 | G157: 100 | I157: 0.83 | J157: 95
A158: LED | B158: ICAO LED (Single Sided) (600mm) | C158: 2 | D158: 1 | F158: 3 | G158: 100 | I158: 0.88 | J158: 95
A159: LED | B159: ICAO LED (Single Sided) (600mm) | C159: 2 | D159: 1 | F159: 4 | G159: 100 | I159: 0.91 | J159: 95
A160: LED | B160: ICAO LED (Single Sided) (600mm) | C160: 2 | D160: 2 | F160: 1 | G160: 65 | I160: 0.88 | J160: 90
A161: LED | B161: ICAO LED (Single Sided) (600mm) | C161: 2 | D161: 2 | F161: 2 | G161: 100 | I161: 0.88 | J161: 95
A162: LED | B162: ICAO LED (Single Sided) (600mm) | C162: 2 | D162: 2 | F162: 3 | G162: 100 | I162: 0.91 | J162: 100
A163: LED | B163: ICAO LED (Single Sided) (600mm) | C163: 2 | D163: 2 | F163: 4 | G163: 100 | I163: 0.91 | J163: 100
A164: LED | B164: ICAO LED (Single Sided) (600mm) | C164: 2 | D164: 3 | F164: 1 | G164: 100 | I164: 0.83 | J164: 95
A165: LED | B165: ICAO LED (Single Sided) (600mm) | C165: 2 | D165: 3 | F165: 2 | G165: 100 | I165: 0.91 | J165: 95
A166: LED | B166: ICAO LED (Single Sided) (600mm) | C166: 2 | D166: 3 | F166: 3 | G166: 100 | I166: 0.91 | J166: 100
A167: LED | B167: ICAO LED (Single Sided) (600mm) | C167: 2 | D167: 3 | F167: 4 | G167: 150 | I167: 0.88 | J167: 115
A168: LED | B168: ICAO LED (Single Sided) (600mm) | C168: 2 | D168: 4 | F168: 1 | G168: 100 | I168: 0.84 | J168: 95
A169: LED | B169: ICAO LED (Single Sided) (600mm) | C169: 2 | D169: 5 | F169: 1 | G169: 100 | I169: 0.83 | J169: 95
A170: LED | B170: ICAO LED (Single Sided) (600mm) | C170: 3 | D170: 1 | F170: 1 | G170: 100 | I170: 0.88 | J170: 75
A171: LED | B171: ICAO LED (Single Sided) (600mm) | C171: 3 | D171: 1 | F171: 2 | G171: 150 | I171: 0.88 | J171: 95
A172: LED | B172: ICAO LED (Single Sided) (600mm) | C172: 3 | D172: 1 | F172: 3 | G172: 150 | I172: 0.88 | J172: 95
A173: LED | B173: ICAO LED (Single Sided) (600mm) | C173: 3 | D173: 1 | F173: 4 | G173: 150 | I173: 0.9 | J173: 100
A174: LED | B174: ICAO LED (Single Sided) (600mm) | C174: 3 | D174: 2 | F174: 1 | G174: 150 | I174: 0.88 | J174: 90
A175: LED | B175: ICAO LED (Single Sided) (600mm) | C175: 3 | D175: 2 | F175: 2 | G175: 150 | I175: 0.9 | J175: 95
A176: LED | B176: ICAO LED (Single Sided) (600mm) | C176: 3 | D176: 2 | F176: 3 | G176: 150 | I176: 0.83 | J176: 100
A177: LED | B177: ICAO LED (Single Sided) (600mm) | C177: 3 | D177: 2 | F177: 4 | G177: 150 | I177: 0.83 | J177: 100
A178: LED | B178: ICAO LED (Single Sided) (600mm) | C178: 3 | D178: 3 | F178: 1 | G178: 150 | I178: 0.88 | J178: 95
A179: LED | B179: ICAO LED (Single Sided) (600mm) | C179: 3 | D179: 3 | F179: 2 | G179: 150 | I179: 0.9 | J179: 100
A180: LED | B180: ICAO LED (Single Sided) (600mm) | C180: 3 | D180: 3 | F180: 3 | G180: 150 | I180: 0.83 | J180: 100
A181: LED | B181: ICAO LED (Single Sided) (600mm) | C181: 3 | D181: 3 | F181: 4 | G181: 200 | I181: 0.85 | J181: 115
A182: LED | B182: ICAO LED (Single Sided) (600mm) | C182: 3 | D182: 4 | F182: 1 | G182: 150 | I182: 0.88 | J182: 95
A183: LED | B183: ICAO LED (Single Sided) (600mm) | C183: 3 | D183: 5 | F183: 1 | G183: 150 | I183: 0.83 | J183: 95
A184: LED | B184: ICAO LED (Single Sided) (600mm) | C184: 5 | D184: 1 | F184: 1 | G184: 65 | I184: 0.84 | J184: 75
A185: LED | B185: ICAO LED (Single Sided) (600mm) | C185: 5 | D185: 1 | F185: 2 | G185: 65 | I185: 0.84 | J185: 85
A186: LED | B186: ICAO LED (Single Sided) (600mm) | C186: 5 | D186: 1 | F186: 3 | G186: 100 | I186: 0.88 | J186: 85
A187: LED | B187: ICAO LED (Single Sided) (600mm) | C187: 5 | D187: 1 | F187: 4 | G187: 100 | I187: 0.88 | J187: 95
A188: LED | B188: ICAO LED (Single Sided) (600mm) | C188: 5 | D188: 2 | F188: 1 | G188: 65 | I188: 0.92 | J188: 75
A189: LED | B189: ICAO LED (Single Sided) (600mm) | C189: 5 | D189: 2 | F189: 2 | G189: 100 | I189: 0.89 | J189: 85
A190: LED | B190: ICAO LED (Single Sided) (600mm) | C190: 5 | D190: 2 | F190: 3 | G190: 100 | I190: 0.9 | J190: 100
A191: LED | B191: ICAO LED (Single Sided) (600mm) | C191: 5 | D191: 2 | F191: 4 | G191: 100 | I191: 0.9 | J191: 100
A192: LED | B192: ICAO LED (Single Sided) (600mm) | C192: 5 | D192: 3 | F192: 1 | G192: 65 | I192: 0.84 | J192: 85
A193: LED | B193: ICAO LED (Single Sided) (600mm) | C193: 5 | D193: 3 | F193: 2 | G193: 100 | I193: 0.88 | J193: 95
A194: LED | B194: ICAO LED (Single Sided) (600mm) | C194: 5 | D194: 3 | F194: 3 | G194: 100 | I194: 0.92 | J194: 100
A195: LED | B195: ICAO LED (Single Sided) (600mm) | C195: 5 | D195: 3 | F195: 4 | G195: 100 | I195: 0.92 | J195: 110
A196: LED | B196: ICAO LED (Single Sided) (600mm) | C196: 5 | D196: 4 | F196: 1 | G196: 65 | I196: 0.83 | J196: 85
A197: LED | B197: ICAO LED (Single Sided) (600mm) | C197: 5 | D197: 5 | F197: 1 | G197: 65 | I197: 0.92 | J197: 85
